[Event "Titled Tuesday Blitz July 13 2021"]
[White "Baradaran, Arman"]
[Black "Kretov, Evgenij"]
[WhiteFideId "880515"]
[BlackFideId "4167821"]
[WhiteElo "2132"]
[BlackElo "2400"]
[Result "0-1"]
[Round "02"]
[TimeControl "180+1"]
[Date "2021.07.13"]
[WhiteClock "0:00:02"]
[BlackClock "0:00:20"]

1. d4 {[%clk 0:03:00]}  Nf6 {[%clk 0:02:59]} 2. c4 {[%clk 0:03:01]}  c5 {[%clk 0:02:59]} 3. d5 {[%clk 0:03:00]}  e5 {[%clk 0:02:59]} 4. Nc3 {[%clk 0:03:00]}  d6 {[%clk 0:03:00]} 5. e4 {[%clk 0:03:00]}  Be7 {[%clk 0:03:00]} 6. g3 {[%clk 0:02:56]}  O-O {[%clk 0:03:00]} 7. Bg2 {[%clk 0:02:56]}  Ne8 {[%clk 0:03:01]} 8. Nge2 {[%clk 0:02:55]}  Nd7 {[%clk 0:03:01]} 9. O-O {[%clk 0:02:54]}  g6 {[%clk 0:03:01]} 10. Bh6 {[%clk 0:02:51]}  Ng7 {[%clk 0:03:01]} 11. f4 {[%clk 0:02:51]}  exf4 {[%clk 0:03:01]} 12. gxf4 {[%clk 0:02:51]}  Bf6 {[%clk 0:03:01]} 13. e5 {[%clk 0:02:32]}  dxe5 {[%clk 0:03:00]} 14. Ne4 {[%clk 0:02:33]}  exf4 {[%clk 0:02:50]} 15. Nxf6+ {[%clk 0:02:30]}  Qxf6 {[%clk 0:02:48]} 16. Rxf4 {[%clk 0:02:17]}  Qxb2 {[%clk 0:02:46]} 17. Rb1 {[%clk 0:02:12]}  Qxa2 {[%clk 0:02:43]} 18. Nc3 {[%clk 0:02:08]}  Qa5 {[%clk 0:02:31]} 19. Ne4 {[%clk 0:02:01]}  f5 {[%clk 0:02:29]} 20. Ng5 {[%clk 0:01:52]}  Nf6 {[%clk 0:02:23]} 21. d6 {[%clk 0:01:46]}  Ne6 {[%clk 0:01:40]} 22. Nxe6 {[%clk 0:01:08]}  Bxe6 {[%clk 0:01:40]} 23. Bxf8 {[%clk 0:01:07]}  Rxf8 {[%clk 0:01:40]} 24. Rxb7 {[%clk 0:01:03]}  Qc3 {[%clk 0:01:30]} 25. Rh4 {[%clk 0:00:27]}  Qe3+ {[%clk 0:01:18]} 26. Kh1 {[%clk 0:00:26]}  Ng4 {[%clk 0:01:14]} 27. Rxg4 {[%clk 0:00:04]}  fxg4 {[%clk 0:01:14]} 28. Qa1 {[%clk 0:00:05]}  Bf7 {[%clk 0:01:00]} 29. Bd5 {[%clk 0:00:02]}  Bxd5+ {[%clk 0:00:36]} 30. cxd5 {[%clk 0:00:01]}  Qd4 {[%clk 0:00:18]} 31. Qxd4 {[%clk 0:00:01]}  cxd4 {[%clk 0:00:18]} 32. Rxa7 {[%clk 0:00:01]}  Rd8 {[%clk 0:00:18]} 33. d7 {[%clk 0:00:01]}  Kf7 {[%clk 0:00:19]} 34. Ra4 {[%clk 0:00:01]}  Rxd7 {[%clk 0:00:18]} 35. Rxd4 {[%clk 0:00:02]}  h5 {[%clk 0:00:19]} 36. Kg2 {[%clk 0:00:02]}  Kf6 {[%clk 0:00:19]} 37. h3 {[%clk 0:00:02]}  gxh3+ {[%clk 0:00:18]} 38. Kxh3 {[%clk 0:00:03]}  Ke5 {[%clk 0:00:19]} 39. Rd1 {[%clk 0:00:02]}  Rxd5 {[%clk 0:00:19]} 40. Re1+ {[%clk 0:00:03]}  Kf6 {[%clk 0:00:19]} 41. Rf1+ {[%clk 0:00:03]}  Rf5 {[%clk 0:00:20]} 42. Ra1 {[%clk 0:00:04]}  Kg5 {[%clk 0:00:20]} 43. Ra6 {[%clk 0:00:05]}  Rc5 {[%clk 0:00:19]} 44. Kg3 {[%clk 0:00:05]}  Rc3+ {[%clk 0:00:19]} 45. Kg2 {[%clk 0:00:06]}  Kf5 {[%clk 0:00:18]} 46. Ra5+ {[%clk 0:00:06]}  Kg4 {[%clk 0:00:18]} 47. Ra4+ {[%clk 0:00:06]}  Kg5 {[%clk 0:00:18]} 48. Ra5+ {[%clk 0:00:07]}  Kh6 {[%clk 0:00:19]} 49. Ra6 {[%clk 0:00:07]}  h4 {[%clk 0:00:19]} 50. Kh2 {[%clk 0:00:05]}  Kh5 {[%clk 0:00:19]} 51. Ra8 {[%clk 0:00:05]}  g5 {[%clk 0:00:20]} 52. Kg2 {[%clk 0:00:05]}  Rc4 {[%clk 0:00:19]} 53. Ra5 {[%clk 0:00:02]}  Kg4 {[%clk 0:00:19]} 54. Ra2 {[%clk 0:00:01]}  Rb4 {[%clk 0:00:19]} 55. Kh2 {[%clk 0:00:02]}  Rc4 {[%clk 0:00:18]} 56. Kg2 {[%clk 0:00:03]}  h3+ {[%clk 0:00:19]} 57. Kh2 {[%clk 0:00:03]}  Kh4 {[%clk 0:00:19]} 58. Rb2 {[%clk 0:00:02]}  g4 {[%clk 0:00:20]} 0-1


[Site "https://www.chess.com"]

[Event "Titled Tuesday Blitz July 13 2021"]
[White "Bartel, Michal"]
[Black "Howell, David W L"]
[WhiteFideId "1119257"]
[BlackFideId "410608"]
[WhiteElo "2271"]
[BlackElo "2643"]
[Result "0-1"]
[Round "02"]
[TimeControl "180+1"]
[Date "2021.07.13"]
[WhiteClock "0:00:46"]
[BlackClock "0:01:18"]

1. e4 {[%clk 0:03:00]}  c5 {[%clk 0:02:56]} 2. Ne2 {[%clk 0:03:00]}  Nc6 {[%clk 0:02:48]} 3. g3 {[%clk 0:02:58]}  d5 {[%clk 0:02:47]} 4. Bg2 {[%clk 0:02:58]}  dxe4 {[%clk 0:02:45]} 5. Bxe4 {[%clk 0:02:59]}  g6 {[%clk 0:02:37]} 6. Nbc3 {[%clk 0:02:50]}  Bg7 {[%clk 0:02:37]} 7. d3 {[%clk 0:02:50]}  Qd7 {[%clk 0:02:36]} 8. Be3 {[%clk 0:02:51]}  b6 {[%clk 0:02:34]} 9. d4 {[%clk 0:02:48]}  Nf6 {[%clk 0:02:26]} 10. Bg2 {[%clk 0:02:33]}  Ng4 {[%clk 0:02:08]} 11. dxc5 {[%clk 0:02:27]}  Nxe3 {[%clk 0:02:05]} 12. Qxd7+ {[%clk 0:02:26]}  Bxd7 {[%clk 0:02:04]} 13. fxe3 {[%clk 0:02:26]}  bxc5 {[%clk 0:02:01]} 14. O-O-O {[%clk 0:02:21]}  Rc8 {[%clk 0:01:59]} 15. Nf4 {[%clk 0:02:14]}  Ne5 {[%clk 0:01:54]} 16. Bd5 {[%clk 0:01:50]}  e6 {[%clk 0:01:49]} 17. Bg2 {[%clk 0:01:45]}  Ke7 {[%clk 0:01:48]} 18. Rhe1 {[%clk 0:01:32]}  Rb8 {[%clk 0:01:39]} 19. Nd3 {[%clk 0:01:27]}  Rhc8 {[%clk 0:01:35]} 20. Nxe5 {[%clk 0:01:07]}  Bxe5 {[%clk 0:01:36]} 21. Rd3 {[%clk 0:01:00]}  c4 {[%clk 0:01:27]} 22. Rdd1 {[%clk 0:00:57]}  Rb6 {[%clk 0:01:20]} 23. Bh3 {[%clk 0:00:32]}  Rcb8 {[%clk 0:01:16]} 24. Rd4 {[%clk 0:00:19]}  Bxd4 {[%clk 0:01:08]} 25. exd4 {[%clk 0:00:20]}  Rxb2 {[%clk 0:01:09]} 26. Kd2 {[%clk 0:00:20]}  Kd8 {[%clk 0:01:04]} 27. Rf1 {[%clk 0:00:19]}  f5 {[%clk 0:01:03]} 28. Re1 {[%clk 0:00:19]}  R2b6 {[%clk 0:01:02]} 29. Bg2 {[%clk 0:00:20]}  Rd6 {[%clk 0:01:02]} 30. Ke3 {[%clk 0:00:20]}  Rb2 {[%clk 0:01:02]} 31. Re2 {[%clk 0:00:20]}  Ke7 {[%clk 0:01:01]} 32. Rd2 {[%clk 0:00:19]}  Kf6 {[%clk 0:01:01]} 33. Kf4 {[%clk 0:00:19]}  Rxd4+ {[%clk 0:01:00]} 34. Rxd4 {[%clk 0:00:19]}  e5+ {[%clk 0:01:00]} 35. Ke3 {[%clk 0:00:19]}  exd4+ {[%clk 0:01:01]} 36. Kxd4 {[%clk 0:00:20]}  Rxc2 {[%clk 0:01:01]} 37. Bf3 {[%clk 0:00:21]}  Rxh2 {[%clk 0:01:00]} 38. Nd5+ {[%clk 0:00:21]}  Kg5 {[%clk 0:01:00]} 39. Kxc4 {[%clk 0:00:22]}  Be6 {[%clk 0:01:00]} 40. Kd4 {[%clk 0:00:23]}  Bxd5 {[%clk 0:01:01]} 41. Kxd5 {[%clk 0:00:23]}  Rh3 {[%clk 0:01:01]} 42. Ke5 {[%clk 0:00:24]}  Rxg3 {[%clk 0:01:02]} 43. Bc6 {[%clk 0:00:25]}  Ra3 {[%clk 0:01:01]} 44. Bd5 {[%clk 0:00:26]}  Ra5 {[%clk 0:01:01]} 45. Kd4 {[%clk 0:00:26]}  Rxd5+ {[%clk 0:01:01]} 46. Kxd5 {[%clk 0:00:27]}  h5 {[%clk 0:01:02]} 47. Kd4 {[%clk 0:00:28]}  h4 {[%clk 0:01:03]} 48. Ke3 {[%clk 0:00:29]}  Kg4 {[%clk 0:01:03]} 49. Kf2 {[%clk 0:00:29]}  f4 {[%clk 0:01:04]} 50. a4 {[%clk 0:00:29]}  Kf5 {[%clk 0:01:05]} 51. a5 {[%clk 0:00:30]}  g5 {[%clk 0:01:06]} 52. a6 {[%clk 0:00:31]}  g4 {[%clk 0:01:07]} 53. Kg2 {[%clk 0:00:31]}  Ke4 {[%clk 0:01:07]} 54. Kh2 {[%clk 0:00:32]}  Kd5 {[%clk 0:01:08]} 55. Kg2 {[%clk 0:00:33]}  Kc5 {[%clk 0:01:09]} 56. Kf2 {[%clk 0:00:34]}  Kb5 {[%clk 0:01:10]} 57. Ke2 {[%clk 0:00:35]}  Kxa6 {[%clk 0:01:11]} 58. Kd3 {[%clk 0:00:36]}  h3 {[%clk 0:01:11]} 59. Ke4 {[%clk 0:00:37]}  h2 {[%clk 0:01:12]} 60. Kxf4 {[%clk 0:00:38]}  h1=Q {[%clk 0:01:13]} 61. Kxg4 {[%clk 0:00:39]}  Qf1 {[%clk 0:01:13]} 62. Kh4 {[%clk 0:00:39]}  Kb5 {[%clk 0:01:13]} 63. Kg3 {[%clk 0:00:40]}  a5 {[%clk 0:01:14]} 64. Kh2 {[%clk 0:00:40]}  a4 {[%clk 0:01:15]} 65. Kg3 {[%clk 0:00:41]}  a3 {[%clk 0:01:16]} 66. Kh2 {[%clk 0:00:42]}  a2 {[%clk 0:01:17]} 67. Kg3 {[%clk 0:00:43]}  a1=Q {[%clk 0:01:18]} 68. Kh2 {[%clk 0:00:44]}  Qh8+ {[%clk 0:01:17]} 69. Kg3 {[%clk 0:00:45]}  Qg7+ {[%clk 0:01:18]} 70. Kh2 {[%clk 0:00:46]}  Qgg2# {[%clk 0:01:18]} 0-1


[Site "https://www.chess.com"]

[Event "Titled Tuesday Blitz July 13 2021"]
[White "Bersamina, Paulo"]
[Black "Gurevich, Dmitry"]
[WhiteFideId "5206995"]
[BlackFideId "2000407"]
[WhiteElo "2349"]
[BlackElo "2506"]
[Result "1-0"]
[Round "02"]
[TimeControl "180+1"]
[Date "2021.07.13"]
[WhiteClock "0:01:08"]
[BlackClock "0:00:33"]

1. e4 {[%clk 0:03:00]}  c5 {[%clk 0:02:57]} 2. Nf3 {[%clk 0:02:59]}  d6 {[%clk 0:02:57]} 3. Bb5+ {[%clk 0:02:58]}  Bd7 {[%clk 0:02:57]} 4. a4 {[%clk 0:02:58]}  Nc6 {[%clk 0:02:56]} 5. O-O {[%clk 0:02:57]}  Nf6 {[%clk 0:02:56]} 6. Re1 {[%clk 0:02:57]}  g6 {[%clk 0:02:55]} 7. c3 {[%clk 0:02:57]}  Bg7 {[%clk 0:02:54]} 8. d4 {[%clk 0:02:58]}  cxd4 {[%clk 0:02:54]} 9. cxd4 {[%clk 0:02:58]}  O-O {[%clk 0:02:54]} 10. d5 {[%clk 0:02:57]}  Na5 {[%clk 0:02:39]} 11. Nc3 {[%clk 0:02:55]}  Rc8 {[%clk 0:02:37]} 12. Be3 {[%clk 0:02:52]}  a6 {[%clk 0:02:31]} 13. Bxd7 {[%clk 0:02:51]}  Qxd7 {[%clk 0:02:28]} 14. Bd4 {[%clk 0:02:51]}  Bh6 {[%clk 0:02:03]} 15. h3 {[%clk 0:02:35]}  Rfe8 {[%clk 0:01:59]} 16. b4 {[%clk 0:02:18]}  Nc4 {[%clk 0:01:57]} 17. a5 {[%clk 0:02:18]}  Bg7 {[%clk 0:01:55]} 18. Na4 {[%clk 0:02:14]}  e6 {[%clk 0:01:48]} 19. dxe6 {[%clk 0:02:02]}  Rxe6 {[%clk 0:01:38]} 20. Rc1 {[%clk 0:02:00]}  d5 {[%clk 0:01:21]} 21. exd5 {[%clk 0:01:47]}  Qxd5 {[%clk 0:01:14]} 22. Bxf6 {[%clk 0:01:38]}  Qxd1 {[%clk 0:01:10]} 23. Rexd1 {[%clk 0:01:33]}  Rxf6 {[%clk 0:01:02]} 24. Ne5 {[%clk 0:01:33]}  Rf4 {[%clk 0:00:59]} 25. Nb6 {[%clk 0:01:15]}  Nxb6 {[%clk 0:00:56]} 26. Rxc8+ {[%clk 0:01:09]}  Nxc8 {[%clk 0:00:56]} 27. Rd8+ {[%clk 0:01:08]}  Bf8 {[%clk 0:00:54]} 28. Nd7 {[%clk 0:01:08]}  Rd4 {[%clk 0:00:37]} 29. Nf6+ {[%clk 0:01:08]}  Kh8 {[%clk 0:00:33]} 1-0


[Site "https://www.chess.com"]

[Event "Titled Tuesday Blitz July 13 2021"]
[White "Carlsson, Ludvig"]
[Black "Darini, Pouria"]
[WhiteFideId "1727010"]
[BlackFideId "12502200"]
[WhiteElo "2147"]
[BlackElo "2489"]
[Result "0-1"]
[Round "02"]
[TimeControl "180+1"]
[Date "2021.07.13"]
[WhiteClock "0:00:07"]
[BlackClock "0:00:20"]

1. e4 {[%clk 0:03:00]}  c5 {[%clk 0:02:59]} 2. Nf3 {[%clk 0:03:00]}  d6 {[%clk 0:03:00]} 3. c3 {[%clk 0:03:00]}  Nf6 {[%clk 0:03:00]} 4. Be2 {[%clk 0:03:00]}  Nbd7 {[%clk 0:03:00]} 5. d3 {[%clk 0:03:00]}  b6 {[%clk 0:03:00]} 6. O-O {[%clk 0:03:00]}  Bb7 {[%clk 0:03:01]} 7. Re1 {[%clk 0:03:00]}  g6 {[%clk 0:03:02]} 8. Bf1 {[%clk 0:03:00]}  Bg7 {[%clk 0:03:01]} 9. Bg5 {[%clk 0:02:53]}  O-O {[%clk 0:03:00]} 10. Qc1 {[%clk 0:02:52]}  e5 {[%clk 0:02:53]} 11. a4 {[%clk 0:02:48]}  a6 {[%clk 0:02:50]} 12. Nbd2 {[%clk 0:02:48]}  Qc7 {[%clk 0:02:48]} 13. Nc4 {[%clk 0:02:35]}  d5 {[%clk 0:02:44]} 14. Ncd2 {[%clk 0:02:20]}  Rfe8 {[%clk 0:02:34]} 15. Qc2 {[%clk 0:02:19]}  h6 {[%clk 0:02:32]} 16. Bxf6 {[%clk 0:02:19]}  Nxf6 {[%clk 0:02:31]} 17. c4 {[%clk 0:02:19]}  d4 {[%clk 0:02:19]} 18. g3 {[%clk 0:02:15]}  a5 {[%clk 0:02:12]} 19. Bg2 {[%clk 0:02:15]}  Bf8 {[%clk 0:01:57]} 20. b3 {[%clk 0:02:11]}  Bd6 {[%clk 0:01:57]} 21. Nh4 {[%clk 0:02:08]}  Bc8 {[%clk 0:01:55]} 22. Qd1 {[%clk 0:02:06]}  Bd7 {[%clk 0:01:48]} 23. Qe2 {[%clk 0:02:06]}  Nh7 {[%clk 0:01:43]} 24. Qf1 {[%clk 0:02:04]}  Rad8 {[%clk 0:01:38]} 25. Bh3 {[%clk 0:02:04]}  h5 {[%clk 0:01:35]} 26. Bxd7 {[%clk 0:01:59]}  Rxd7 {[%clk 0:01:36]} 27. Qh3 {[%clk 0:01:52]}  Ng5 {[%clk 0:01:30]} 28. Qg2 {[%clk 0:01:52]}  Ne6 {[%clk 0:01:30]} 29. Qf3 {[%clk 0:01:52]}  Be7 {[%clk 0:01:30]} 30. Ng2 {[%clk 0:01:51]}  Ng5 {[%clk 0:01:30]} 31. Qe2 {[%clk 0:01:49]}  Bd6 {[%clk 0:01:22]} 32. h4 {[%clk 0:01:48]}  Ne6 {[%clk 0:01:22]} 33. Qf3 {[%clk 0:01:47]}  Kg7 {[%clk 0:01:18]} 34. Qe2 {[%clk 0:01:42]}  Rh8 {[%clk 0:01:13]} 35. Nf3 {[%clk 0:01:39]}  f6 {[%clk 0:01:13]} 36. Kh2 {[%clk 0:01:34]}  Kf8 {[%clk 0:01:13]} 37. Rh1 {[%clk 0:01:34]}  Rf7 {[%clk 0:01:06]} 38. Rae1 {[%clk 0:01:33]}  Ke7 {[%clk 0:01:05]} 39. Kg1 {[%clk 0:01:33]}  Kd8 {[%clk 0:01:03]} 40. Kf1 {[%clk 0:01:32]}  Qd7 {[%clk 0:01:01]} 41. Rd1 {[%clk 0:01:31]}  Qc6 {[%clk 0:01:00]} 42. Ke1 {[%clk 0:01:25]}  Rhf8 {[%clk 0:00:56]} 43. Nd2 {[%clk 0:01:21]}  f5 {[%clk 0:00:55]} 44. Rf1 {[%clk 0:01:21]}  f4 {[%clk 0:00:50]} 45. Nf3 {[%clk 0:00:58]}  Qd7 {[%clk 0:00:50]} 46. Kd2 {[%clk 0:00:57]}  Rf6 {[%clk 0:00:40]} 47. Kc2 {[%clk 0:00:56]}  Qf7 {[%clk 0:00:37]} 48. Nge1 {[%clk 0:00:56]}  Kc7 {[%clk 0:00:33]} 49. Qd2 {[%clk 0:00:43]}  Qe7 {[%clk 0:00:31]} 50. Qe2 {[%clk 0:00:43]}  R8f7 {[%clk 0:00:31]} 51. Kb2 {[%clk 0:00:18]}  Qf8 {[%clk 0:00:31]} 52. Kc2 {[%clk 0:00:18]}  Qg7 {[%clk 0:00:27]} 53. Kb2 {[%clk 0:00:18]}  Rf8 {[%clk 0:00:27]} 54. Kc2 {[%clk 0:00:19]}  R6f7 {[%clk 0:00:28]} 55. Rd2 {[%clk 0:00:18]}  Be7 {[%clk 0:00:28]} 56. Rd1 {[%clk 0:00:18]}  Kd6 {[%clk 0:00:29]} 57. Kd2 {[%clk 0:00:13]}  Rf6 {[%clk 0:00:29]} 58. Kc2 {[%clk 0:00:14]}  R8f7 {[%clk 0:00:30]} 59. Kb2 {[%clk 0:00:14]}  Qh8 {[%clk 0:00:30]} 60. Kc2 {[%clk 0:00:14]}  Bf8 {[%clk 0:00:30]} 61. Nxe5 {[%clk 0:00:14]}  Kxe5 {[%clk 0:00:30]} 62. Nf3+ {[%clk 0:00:14]}  Kd6 {[%clk 0:00:31]} 63. e5+ {[%clk 0:00:15]}  Kc7 {[%clk 0:00:26]} 64. exf6 {[%clk 0:00:15]}  Rxf6 {[%clk 0:00:27]} 65. Qe5+ {[%clk 0:00:15]}  Bd6 {[%clk 0:00:27]} 66. Qd5 {[%clk 0:00:15]}  Qf8 {[%clk 0:00:28]} 67. Rde1 {[%clk 0:00:15]}  Nd8 {[%clk 0:00:25]} 68. gxf4 {[%clk 0:00:04]}  Nc6 {[%clk 0:00:25]} 69. Nd2 {[%clk 0:00:04]}  Nb4+ {[%clk 0:00:25]} 70. Kb2 {[%clk 0:00:04]}  Nxd5 {[%clk 0:00:26]} 71. cxd5 {[%clk 0:00:05]}  Rxf4 {[%clk 0:00:27]} 72. Ne4 {[%clk 0:00:05]}  Qf5 {[%clk 0:00:23]} 73. f3 {[%clk 0:00:05]}  Qxd5 {[%clk 0:00:22]} 74. Nd2 {[%clk 0:00:04]}  Rxh4 {[%clk 0:00:20]} 75. Rf2 {[%clk 0:00:03]}  Rh2 {[%clk 0:00:20]} 76. Rxh2 {[%clk 0:00:04]}  Bxh2 {[%clk 0:00:20]} 77. Re7+ {[%clk 0:00:05]}  Kd8 {[%clk 0:00:20]} 78. Rg7 {[%clk 0:00:06]}  Qe5 {[%clk 0:00:19]} 79. Rxg6 {[%clk 0:00:05]}  Qe2 {[%clk 0:00:19]} 80. Kc2 {[%clk 0:00:05]}  Bf4 {[%clk 0:00:20]} 81. Rg8+ {[%clk 0:00:05]}  Ke7 {[%clk 0:00:19]} 82. Rg7+ {[%clk 0:00:06]}  Kf6 {[%clk 0:00:20]} 83. Rg2 {[%clk 0:00:07]}  Qxg2 {[%clk 0:00:20]} 0-1


[Site "https://www.chess.com"]

[Event "Titled Tuesday Blitz July 13 2021"]
[White "Chen, Max"]
[Black "Khanin, Semen"]
[WhiteFideId "2622440"]
[BlackFideId "4111990"]
[WhiteElo "2481"]
[BlackElo "2521"]
[Result "0-1"]
[Round "02"]
[TimeControl "180+1"]
[Date "2021.07.13"]
[WhiteClock "0:00:29"]
[BlackClock "0:00:28"]

1. e4 {[%clk 0:03:00]}  c5 {[%clk 0:02:57]} 2. c3 {[%clk 0:03:00]}  d5 {[%clk 0:02:56]} 3. exd5 {[%clk 0:03:00]}  Qxd5 {[%clk 0:02:57]} 4. d4 {[%clk 0:03:01]}  Nc6 {[%clk 0:02:56]} 5. Nf3 {[%clk 0:03:00]}  Bf5 {[%clk 0:02:56]} 6. Be3 {[%clk 0:02:57]}  e6 {[%clk 0:02:52]} 7. dxc5 {[%clk 0:02:51]}  Qxd1+ {[%clk 0:02:51]} 8. Kxd1 {[%clk 0:02:50]}  Nf6 {[%clk 0:02:51]} 9. Bb5 {[%clk 0:02:40]}  Ng4 {[%clk 0:02:47]} 10. b4 {[%clk 0:02:16]}  Nxe3+ {[%clk 0:02:44]} 11. fxe3 {[%clk 0:02:15]}  O-O-O {[%clk 0:02:43]} 12. Ke2 {[%clk 0:02:15]}  g5 {[%clk 0:02:37]} 13. Nbd2 {[%clk 0:02:10]}  Bg7 {[%clk 0:02:36]} 14. Rac1 {[%clk 0:02:00]}  h6 {[%clk 0:02:15]} 15. Nd4 {[%clk 0:01:51]}  Bg4+ {[%clk 0:02:14]} 16. Kf2 {[%clk 0:01:46]}  Ne5 {[%clk 0:02:14]} 17. h3 {[%clk 0:01:37]}  Bh5 {[%clk 0:02:13]} 18. N2f3 {[%clk 0:01:36]}  Nxf3 {[%clk 0:02:05]} 19. gxf3 {[%clk 0:01:29]}  Bg6 {[%clk 0:02:02]} 20. Ke2 {[%clk 0:01:24]}  e5 {[%clk 0:01:56]} 21. Nb3 {[%clk 0:01:22]}  e4 {[%clk 0:01:57]} 22. fxe4 {[%clk 0:01:18]}  Bxe4 {[%clk 0:01:55]} 23. Rhf1 {[%clk 0:01:14]}  f5 {[%clk 0:01:51]} 24. Nd4 {[%clk 0:01:14]}  Bxd4 {[%clk 0:01:23]} 25. cxd4 {[%clk 0:01:02]}  h5 {[%clk 0:01:10]} 26. Bd3 {[%clk 0:01:00]}  Bxd3+ {[%clk 0:01:05]} 27. Kxd3 {[%clk 0:01:00]}  Rdf8 {[%clk 0:01:04]} 28. d5 {[%clk 0:00:56]}  g4 {[%clk 0:01:03]} 29. h4 {[%clk 0:00:53]}  Rhg8 {[%clk 0:01:01]} 30. d6 {[%clk 0:00:48]}  g3 {[%clk 0:01:00]} 31. b5 {[%clk 0:00:47]}  Kd7 {[%clk 0:00:59]} 32. Kd4 {[%clk 0:00:47]}  Ke6 {[%clk 0:00:54]} 33. Rf4 {[%clk 0:00:42]}  b6 {[%clk 0:00:30]} 34. cxb6 {[%clk 0:00:30]}  axb6 {[%clk 0:00:29]} 35. Rc6 {[%clk 0:00:29]}  g2 {[%clk 0:00:28]} 0-1


[Site "https://www.chess.com"]

[Event "Titled Tuesday Blitz July 13 2021"]
[White "Csonka, Balazs"]
[Black "Nasyrova, Ekaterina"]
[WhiteFideId "742910"]
[BlackFideId "44157797"]
[WhiteElo "2404"]
[BlackElo "2115"]
[Result "1-0"]
[Round "02"]
[TimeControl "180+1"]
[Date "2021.07.13"]
[WhiteClock "0:00:35"]
[BlackClock "0:01:46"]

1. d4 {[%clk 0:03:00]}  d5 {[%clk 0:02:59]} 2. Nf3 {[%clk 0:02:59]}  Nf6 {[%clk 0:02:59]} 3. Bf4 {[%clk 0:02:58]}  e6 {[%clk 0:02:59]} 4. e3 {[%clk 0:02:57]}  Bd6 {[%clk 0:02:58]} 5. Nbd2 {[%clk 0:02:56]}  Bxf4 {[%clk 0:02:57]} 6. exf4 {[%clk 0:02:55]}  O-O {[%clk 0:02:57]} 7. Bd3 {[%clk 0:02:55]}  Nbd7 {[%clk 0:02:56]} 8. O-O {[%clk 0:02:48]}  c5 {[%clk 0:02:50]} 9. c3 {[%clk 0:02:48]}  c4 {[%clk 0:02:49]} 10. Bc2 {[%clk 0:02:47]}  b5 {[%clk 0:02:48]} 11. Re1 {[%clk 0:02:35]}  Re8 {[%clk 0:02:42]} 12. Ne5 {[%clk 0:02:21]}  Bb7 {[%clk 0:02:42]} 13. Ndf3 {[%clk 0:02:10]}  h6 {[%clk 0:02:34]} 14. Nxd7 {[%clk 0:01:53]}  Nxd7 {[%clk 0:02:31]} 15. Ne5 {[%clk 0:01:51]}  a5 {[%clk 0:02:30]} 16. Qh5 {[%clk 0:01:42]}  Nxe5 {[%clk 0:02:28]} 17. Rxe5 {[%clk 0:01:34]}  b4 {[%clk 0:02:18]} 18. Rae1 {[%clk 0:01:27]}  a4 {[%clk 0:02:10]} 19. cxb4 {[%clk 0:00:57]}  a3 {[%clk 0:02:06]} 20. bxa3 {[%clk 0:00:41]}  Rxa3 {[%clk 0:02:06]} 21. f5 {[%clk 0:00:42]}  Qf6 {[%clk 0:02:05]} 22. fxe6 {[%clk 0:00:36]}  Rxe6 {[%clk 0:01:45]} 23. Rxe6 {[%clk 0:00:36]}  fxe6 {[%clk 0:01:46]} 24. Qe8+ {[%clk 0:00:35]}  Qf8 {[%clk 0:01:46]} 25. Bh7+ {[%clk 0:00:35]} 1-0


[Site "https://www.chess.com"]

[Event "Titled Tuesday Blitz July 13 2021"]
[White "Cunha, Lucas Aguiar"]
[Black "Torkkola, Henri"]
[WhiteFideId "2125404"]
[BlackFideId "507660"]
[WhiteElo "2361"]
[BlackElo "2137"]
[Result "1-0"]
[Round "02"]
[TimeControl "180+1"]
[Date "2021.07.13"]
[WhiteClock "0:00:20"]
[BlackClock "0:00:04"]

1. e4 {[%clk 0:02:57]}  d6 {[%clk 0:02:59]} 2. d4 {[%clk 0:02:56]}  Nf6 {[%clk 0:03:00]} 3. Nc3 {[%clk 0:02:56]}  e5 {[%clk 0:03:00]} 4. Nf3 {[%clk 0:02:49]}  Nbd7 {[%clk 0:03:00]} 5. Bc4 {[%clk 0:02:47]}  Be7 {[%clk 0:02:59]} 6. Ng5 {[%clk 0:02:46]}  O-O {[%clk 0:02:52]} 7. Bxf7+ {[%clk 0:02:46]}  Rxf7 {[%clk 0:02:50]} 8. Ne6 {[%clk 0:02:46]}  Qe8 {[%clk 0:02:51]} 9. Nxc7 {[%clk 0:02:46]}  Qd8 {[%clk 0:02:51]} 10. Nxa8 {[%clk 0:02:46]}  exd4 {[%clk 0:02:36]} 11. Qxd4 {[%clk 0:02:45]}  Ne5 {[%clk 0:02:36]} 12. Qxa7 {[%clk 0:02:41]}  d5 {[%clk 0:02:18]} 13. O-O {[%clk 0:01:21]}  Nxe4 {[%clk 0:01:54]} 14. Nxe4 {[%clk 0:01:14]}  dxe4 {[%clk 0:01:55]} 15. Be3 {[%clk 0:01:06]}  Bd6 {[%clk 0:01:41]} 16. Qd4 {[%clk 0:00:29]}  Nf3+ {[%clk 0:01:36]} 17. gxf3 {[%clk 0:00:28]}  Bxh2+ {[%clk 0:01:37]} 18. Kxh2 {[%clk 0:00:28]}  Qh4+ {[%clk 0:01:37]} 19. Kg1 {[%clk 0:00:28]}  Bh3 {[%clk 0:00:23]} 20. Rfd1 {[%clk 0:00:23]}  Qh5 {[%clk 0:00:12]} 21. Qd8+ {[%clk 0:00:21]}  Rf8 {[%clk 0:00:12]} 22. Qd5+ {[%clk 0:00:22]}  Qxd5 {[%clk 0:00:11]} 23. Rxd5 {[%clk 0:00:23]}  exf3 {[%clk 0:00:10]} 24. Nc7 {[%clk 0:00:22]}  Rf6 {[%clk 0:00:05]} 25. Rg5 {[%clk 0:00:21]}  h6 {[%clk 0:00:04]} 26. Rg3 {[%clk 0:00:21]}  Bg2 {[%clk 0:00:04]} 27. Nd5 {[%clk 0:00:20]}  Rf5 {[%clk 0:00:04]} 28. Ne7+ {[%clk 0:00:20]} 1-0


[Site "https://www.chess.com"]